Workbook

Sheet Index
B3: Champ | C3: =+A14 -> 10 | D3: ° | K3: Catalogue d'étoiles B de luminosité III IV V
B5: AD | C5: =+A16*C3/2 -> 280 | D5: ° | K5: Extrait de Simbad
C6: =+C5/15 -> 18.66666667 | D6: h | G6: Nb Stars | H6: =+COUNTA(G11:G400) -> 22 | K6: Mag V < 10
B8: De | C8: 35 | D8: °
G9: Name | H9: Type | I9: Be - Em. | J9: RA | K9: DE | L9: V | M9: B | N9: Sp Type
B10: Type - | C10: 2
B11: Type + | C11: 3 | G11: HR 6968 | H11: *i* | J11: 18 32 49.9 | K11: +30 33 15.15 | L11: 5.389 | M11: 5.465 | N11: B8IV
G12: HR 6971 | H12: Be* | I12: Be | J12: 18 33 23 | K12: +30 53 31.52 | L12: 6.437 | M12: 6.538 | N12: B4Ve
G13: HR 6984 | H13: * | J13: 18 35 13.5 | K13: +34 27 28.87 | L13: 5.984 | M13: 6.088 | N13: B5Vne
A14: 10 | B14: Champ | G14: HR 6984 | H14: * | J14: 18 35 13.5 | K14: +34 27 28.87 | L14: 5.984 | M14: 6.088 | N14: B5Vne
G15: HR 6997 | H15: * | J15: 18 36 37.3 | K15: +33 28 8.54 | L15: 5.312 | M15: 5.41 | N15: B8II-IIIp...
A16: 56 | B16: AD | G16: HR 7030 | H16: * | J16: 18 41 41.3 | K16: +31 37 3.4 | L16: 6.356 | M16: 6.403 | N16: B8V
G17: HR 7033 | H17: * | J17: 18 42 8 | K17: +34 44 46.69 | L17: 6.34 | M17: 6.47 | N17: B5V
A18: 8 | B18: DE | G18: HR 7033 | H18: * | J18: 18 42 8 | K18: +34 44 46.69 | L18: 6.34 | M18: 6.47 | N18: B5V
G19: HR 7081 | H19: Be* | I19: Be | J19: 18 47 57.3 | K19: +31 45 24.6 | L19: 5.912 | M19: 6.047 | N19: B3IVp
G20: 8 Lyr | H20: V* | J20: 18 49 45.9 | K20: +32 48 46.16 | L20: 5.763 | M20: 5.914 | N20: B3IV
G21: bet Lyr | H21: Var bL* | J21: 18 50 4.7 | K21: +33 21 45.6 | L21: 3.52 | M21: 3.52 | N21: B8II-IIIep
G22: HD 174664 | H22: SB* | J22: 18 50 6.7 | K22: +33 21 6.67 | L22: 7.05 | M22: 7.13 | N22: B5V
G23: HD 174664 | H23: SB* | J23: 18 50 6.7 | K23: +33 21 6.67 | L23: 7.05 | M23: 7.13 | N23: B5V
G24: HR 7115 | H24: * | J24: 18 51 36.5 | K24: +36 32 20.72 | L24: 5.993 | M24: 6.09 | N24: B6IV
B25: 5 | G25: HD 175081 | H25: *i* | J25: 18 52 1.5 | K25: +37 30 59.49 | L25: 7.27 | M25: 7.34 | N25: B5n
B26: 10 | G26: HD 175081 | H26: *i* | J26: 18 52 1.5 | K26: +37 30 59.49 | L26: 7.27 | M26: 7.34 | N26: B5n
G27: 11 Lyr | H27: * | J27: 18 53 43.5 | K27: +36 58 18.19 | L27: 5.433 | M27: 5.569 | N27: B2.5V
G28: HD 175885 | H28: *i* | J28: 18 56 1.6 | K28: +33 47 8.12 | L28: 8.11 | M28: 8.13 | N28: B9V
G29: V542 Lyr | H29: Var Al* | J29: 18 58 1.8 | K29: +38 15 58.28 | L29: 5.798 | M29: 5.886 | N29: B7IV
G30: SULAFAT | H30: *i* | J30: 18 58 56.6 | K30: +32 41 22.4 | L30: 3.2 | M30: 3.25 | N30: B9III
G31: V545 Lyr | H31: Var LP* | J31: 18 59 12.2 | K31: +39 13 2.36 | L31: 6.249 | M31: 6.404 | N31: B5IV
G32: V545 Lyr | H32: Var LP* | J32: 18 59 12.2 | K32: +39 13 2.36 | L32: 6.249 | M32: 6.404 | N32: B5IV

Sheet Base
A1: Name | B1: Var | C1: Type | D1: Em | E1: Be | F1: AD0 | G1: AD | H1: DE0 | I1: DE | J1: B mag | K1: V Mag | L1: Sp Type | M1: Sp Simp | N1: Luminosity
A2: BD+61 2579 | C2: * | F2: 0.1048192 | G2: 0 0 25.1 | H2: 62.7255814 | I2: +62 43 32.09 | J2: 10.03 | K2: 9.84 | L2: B8V | M2: =+LEFT(L2,2) -> B8 | N2: =+IF(MID(L2,3,1)=".",MID(L2,5,10),MID(L2,3,10)) -> V | O2: =+F2 -> 0.1048192 | P2: =+H2 -> 62.7255814 | Q2: =11-K2 -> 1.16
A3: CG And | B3: Var | C3: a2* | F3: 0.18180992 | G3: 0 0 43.6 | H3: 45.25333298 | I3: +45 15 11.99 | J3: 6.305 | K3: 6.353 | L3: B9p... | M3: B9 | N3: p... | O3: =+F3 -> 0.18180992 | P3: =+H3 -> 45.25333298 | Q3: 4.647
A4: BD+60 2654 | C4: * | F4: 0.1987454 | G4: 0 0 47.6 | H4: 60.8138231 | I4: +60 48 49.76 | J4: 10.08 | K4: 9.9 | L4: B8III | M4: B8 | N4: III | O4: 0.1987454 | P4: 60.8138231 | Q4: 1.1
A5: BD+61 2581 | C5: * | F5: 0.2459521 | G5: 0 0 59 | H5: 62.0814342 | I5: +62 4 53.16 | J5: 10.16 | K5: 9.91 | L5: B3V | M5: B3 | N5: V | O5: 0.2459521 | P5: 62.0814342 | Q5: 1.09
A6: BD+62 2345 | C6: * | F6: 0.315367 | G6: 0 1 15.6 | H6: 63.2425 | I6: +63 14 32.99 | J6: 10.01 | K6: 9.87 | L6: B2V | M6: B2 | N6: V | O6: 0.315367 | P6: 63.2425 | Q6: 1.13
A7: BD+62 2346 | C7: Be* | E7: Be | F7: 0.352896 | G7: 0 1 24.6 | H7: 63.504369 | I7: +63 30 15.72 | J7: 10.107 | K7: 9.73 | L7: B0V | M7: B0 | N7: V | O7: 0.352896 | P7: 63.504369 | Q7: 1.27
A8: HD 224905 | B8: =IF(LEFT(A8,2)="V*","var","") ->  | C8: Be* | E8: Be | F8: 0.4109621 | G8: 0 1 38.6 | H8: 60.4499214 | I8: 60 26 59.71 | J8: 8.58 | K8: 8.47 | L8: B1Vn | M8: B1 | N8: Vn | O8: 0.4109621 | P8: 60.4499214 | Q8: 2.53
A9: HR 9086 | C9: * | F9: 0.4327075 | G9: 0 1 43.8 | H9: 42.36714349 | I9: +42 22 1.71 | J9: 6.199 | K9: 6.243 | L9: B9IIImnp... | M9: B9 | N9: IIImnp... | O9: 0.4327075 | P9: 42.36714349 | Q9: 4.757
A10: HD 224939 | C10: * | F10: 0.49692751 | G10: 0 1 59.2 | H10: 63.35782773 | I10: +63 21 28.17 | J10: 8.68 | K10: 8.6 | L10: B8V | M10: B8 | N10: V | O10: 0.49692751 | P10: 63.35782773 | Q10: 2.4
A11: BD+62 2352 | C11: * | F11: 0.520267 | G11: 0 2 4.8 | H11: 62.897881 | I11: +62 53 52.37 | J11: 10.2 | K11: 9.82 | L11: B8V | M11: B8 | N11: V | O11: 0.520267 | P11: 62.897881 | Q11: 1.18
A12: BD+66 1674 | C12: *iC | F12: 0.542692 | G12: 0 2 10.2 | H12: 67.429242 | I12: +67 25 45.27 | J12: 10.67 | K12: 9.6 | L12: B0IIIn | M12: B0 | N12: IIIn | O12: 0.542692 | P12: 67.429242 | Q12: 1.4
A13: HD 225095 | C13: Em* | D13: Em | F13: 0.86311388 | G13: 0 3 27.1 | H13: 55.55089821 | I13: +55 33 3.23 | J13: 7.91 | K13: 7.95 | L13: B2IVne | M13: B2 | N13: IVne | O13: 0.86311388 | P13: 55.55089821 | Q13: 3.05
A14: BD+61 2583 | C14: * | F14: 0.86376699 | G14: 0 3 27.3 | H14: 62.35780694 | I14: +62 21 28.1 | J14: 8.79 | K14: 8.67 | L14: B8V | M14: B8 | N14: V | O14: 0.86376699 | P14: 62.35780694 | Q14: 2.33
A15: HD 225190 | C15: * | F15: 1.08873332 | G15: 0 4 21.2 | H15: 54.27459204 | I15: +54 16 28.53 | J15: 7.7 | K15: 7.79 | L15: B3V | M15: B3 | N15: V | O15: 1.08873332 | P15: 54.27459204 | Q15: 3.21
A16: ADS 30 | C16: ** | F16: 1.1524461 | G16: 0 4 36.5 | H16: 42.09253105 | I16: +42 5 33.11 | J16: 6.27 | K16: 6.12 | L16: B9III | M16: B9 | N16: III | O16: 1.1524461 | P16: 42.09253105 | Q16: 4.88
A17: CCDM J00049+5832AB | C17: ** | F17: 1.22906911 | G17: 0 4 54.9 | H17: 58.53216709 | I17: +58 31 55.8 | K17: 6.6 | L17: B3V | M17: B3 | N17: V | O17: 1.22906911 | P17: 58.53216709 | Q17: 4.4
A18: V567 Cas | B18: Var | C18: a2* | F18: 1.27562473 | G18: 0 5 6.1 | H18: 61.31397029 | I18: +61 18 50.29 | J18: 5.723 | K18: 5.79 | L18: B8mnp... | M18: B8 | N18: mnp... | O18: 1.27562473 | P18: 61.31397029 | Q18: 5.21
A19: BD+62 2362 | C19: * | F19: 1.3497475 | G19: 0 5 23.9 | H19: 63.7891167 | I19: +63 47 20.82 | J19: 9.92 | K19: 9.74 | L19: B7III | M19: B7 | N19: III | O19: 1.3497475 | P19: 63.7891167 | Q19: 1.26
A20: HD 73 | C20: V* | F20: 1.40401426 | G20: 0 5 36.9 | H20: 43.40142071 | I20: +43 24 5.11 | J20: 8.26 | K20: 8.45 | L20: B1.5IV | M20: B1 | N20: IV | O20: 1.40401426 | P20: 43.40142071 | Q20: 2.55
A21: 10 Cas | C21: Be* | E21: Be | F21: 1.61058678 | G21: 0 6 26.5 | H21: 64.1961689 | I21: +64 11 46.2 | J21: 5.541 | K21: 5.567 | L21: B9IIIe | M21: B9 | N21: IIIe | O21: 1.61058678 | P21: 64.1961689 | Q21: 5.433
A22: BD+59 2829 | C22: Be* | E22: Be | F22: 1.701255 | G22: 0 6 48.3 | H22: 60.6002303 | I22: +60 36 0.82 | J22: 10.14 | K22: 9.86 | L22: B0IV:npe | M22: B0 | N22: IV:npe | O22: 1.701255 | P22: 60.6002303 | Q22: 1.14
A23: ADS 75 A | C23: *i* | F23: 1.79321 | G23: 0 7 10.3 | H23: 63.15639 | I23: +63 9 23 | J23: 10 | L23: B7IV | M23: B7 | N23: IV | O23: 1.79321 | P23: 63.15639 | Q23: 11
A24: HD 236309 | C24: *i* | F24: 2.0550342 | G24: 0 8 13.2 | H24: 59.2157886 | I24: +59 12 56.83 | J24: 9.97 | K24: 9.77 | L24: B9V | M24: B9 | N24: V | O24: 2.0550342 | P24: 59.2157886 | Q24: 1.23
A25: BD+61 5 | C25: * | F25: 2.0912929 | G25: 0 8 21.9 | H25: 62.38307 | I25: +62 22 59.05 | J25: 9.06 | K25: 8.96 | L25: B6V | M25: B6 | N25: V | O25: 2.0912929 | P25: 62.38307 | Q25: 2.04
A26: HD 470 | C26: * | F26: 2.34698632 | G26: 0 9 23.2 | H26: 58.66589572 | I26: +58 39 57.22 | J26: 8.3 | K26: 8.26 | L26: B5V | M26: B5 | N26: V | O26: 2.34698632 | P26: 58.66589572 | Q26: 2.74
A27: HD 470 | C27: * | F27: 2.34698632 | G27: 0 9 23.2 | H27: 58.66589572 | I27: +58 39 57.22 | J27: 8.3 | K27: 8.26 | L27: B5V | M27: B5 | N27: V | O27: 2.34698632 | P27: 58.66589572 | Q27: 2.74
A28: CCDM J00100+1109A | C28: *i* | F28: 2.50915 | G28: 0 10 2.1 | H28: 11.145817 | I28: +11 8 44.94 | J28: 5.5 | K28: 5.53 | L28: B9V | M28: B9 | N28: V | O28: 2.50915 | P28: 11.145817 | Q28: 5.47
A29: 34 Psc | C29: ** | F29: 2.50917887 | G29: 0 10 2.2 | H29: 11.14581332 | I29: +11 8 44.92 | J29: 5.473 | K29: 5.537 | L29: B9Vn | M29: B9 | N29: Vn | O29: 2.50917887 | P29: 11.14581332 | Q29: 5.463
A30: HR 28 | C30: * | F30: 2.62366849 | G30: 0 10 29.6 | H30: 57.16549558 | I30: +57 9 55.78 | J30: 6.643 | K30: 6.721 | L30: B7IV | M30: B7 | N30: IV | O30: 2.62366849 | P30: 57.16549558 | Q30: 4.279
A31: HD 593 | B31: =IF(LEFT(A31,2)="V*","var","") ->  | C31: * | F31: 2.6444173 | G31: 0 10 34.6 | H31: 59.6734077 | I31: 59 40 24.26 | J31: 6.686 | K31: 6.704 | L31: B1V | M31: B1 | N31: V | O31: 2.6444173 | P31: 59.6734077 | Q31: 4.296
A32: HD 594 | C32: *iN | F32: 2.6552229 | G32: 0 10 37.2 | H32: 58.7482492 | I32: +58 44 53.69 | J32: 8.2 | K32: 8.1 | L32: B3IV | M32: B3 | N32: IV | O32: 2.6552229 | P32: 58.7482492 | Q32: 2.9
A33: HD 236327 | C33: *iN | F33: 2.6757883 | G33: 0 10 42.1 | H33: 58.7462686 | I33: +58 44 46.56 | J33: 8.73 | K33: 8.64 | L33: B6V | M33: B6 | N33: V | O33: 2.6757883 | P33: 58.7462686 | Q33: 2.36
A34: HD 627 | C34: * | F34: 2.69319254 | G34: 0 10 46.3 | H34: 58.76951597 | I34: +58 46 10.25 | J34: 8.37 | K34: 8.25 | L34: B7V | M34: B7 | N34: V | O34: 2.69319254 | P34: 58.76951597 | Q34: 2.75
A35: BD+62 11 | C35: Be* | E35: Be | F35: 2.6955025 | G35: 0 10 46.9 | H35: 63.1729367 | I35: +63 10 22.57 | J35: 9.82 | K35: 9.6 | L35: B5V | M35: B5 | N35: V | O35: 2.6955025 | P35: 63.1729367 | Q35: 1.4
A36: BD+62 11 | C36: Be* | E36: Be | F36: 2.6955025 | G36: 0 10 46.9 | H36: 63.1729367 | I36: +63 10 22.57 | J36: 9.82 | K36: 9.6 | L36: B5V | M36: B5 | N36: V | O36: 2.6955025 | P36: 63.1729367 | Q36: 1.4
A37: BD+62 16 | C37: * | F37: 2.9068554 | G37: 0 11 37.6 | H37: 62.9211003 | I37: +62 55 15.96 | J37: 10.01 | K37: 9.78 | L37: B8V | M37: B8 | N37: V | O37: 2.9068554 | P37: 62.9211003 | Q37: 1.22
A38: V470 And | B38: Var | C38: LP* | F38: 3.20935729 | G38: 0 12 50.2 | H38: 37.69365665 | I38: +37 41 37.16 | J38: 6.586 | K38: 6.701 | L38: B2V | M38: B2 | N38: V | O38: 3.20935729 | P38: 37.69365665 | Q38: 4.299
A39: gam Peg | B39: Var | C39: bC* | F39: 3.30896346 | G39: 0 13 14.1 | H39: 15.18359354 | I39: +15 11 0.93 | J39: 2.6 | K39: 2.83 | L39: B2IV | M39: B2 | N39: IV | O39: 3.30896346 | P39: 15.18359354 | Q39: 8.17
A40: BD+61 17 | C40: * | F40: 3.6004233 | G40: 0 14 24.1 | H40: 62.6619483 | I40: +62 39 43.01 | J40: 9.93 | K40: 9.84 | L40: B3V | M40: B3 | N40: V | O40: 3.6004233 | P40: 62.6619483 | Q40: 1.16
A41: HD 1009 | C41: * | F41: 3.67796432 | G41: 0 14 42.7 | H41: 64.56615649 | I41: +64 33 58.16 | J41: 8.54 | K41: 8.38 | L41: B9V... | M41: B9 | N41: V... | O41: 3.67796432 | P41: 64.56615649 | Q41: 2.62
A42: V348 And | B42: Var | C42: Al* | F42: 3.82430338 | G42: 0 15 17.8 | H42: 44.20339653 | I42: +44 12 12.22 | J42: 6.711 | K42: 6.6 | L42: B9V | M42: B9 | N42: V | O42: 3.82430338 | P42: 44.20339653 | Q42: 4.4
A43: BD+76 5A | C43: *i* | F43: 4.058017 | G43: 0 16 13.9 | H43: 76.950761 | I43: +76 57 2.73 | J43: 6.97 | K43: 7.04 | L43: B8V | M43: B8 | N43: V | O43: 4.058017 | P43: 76.950761 | Q43: 3.96
A44: CCDM J00162+7657AB | C44: ** | F44: 4.05808468 | G44: 0 16 13.9 | H44: 76.95075339 | I44: +76 57 2.71 | J44: 6.323 | K44: 6.389 | L44: B8Vnn | M44: B8 | N44: Vnn | O44: 4.05808468 | P44: 76.95075339 | Q44: 4.611
A45: HR 62 | C45: * | F45: 4.28768138 | G45: 0 17 9 | H45: 47.9474059 | I45: +47 56 50.66 | J45: 5.773 | K45: 5.851 | L45: B7III | M45: B7 | N45: III | O45: 4.28768138 | P45: 47.9474059 | Q45: 5.149
A46: HD 1334 | C46: * | F46: 4.45990647 | G46: 0 17 50.3 | H46: 59.05758907 | I46: +59 3 27.32 | J46: 7.7 | K46: 7.69 | L46: B2.5V | M46: B2 | N46: V | O46: 4.45990647 | P46: 59.05758907 | Q46: 3.31
A47: 26 And | C47: *i* | F47: 4.67570199 | G47: 0 18 42.1 | H47: 43.79114037 | I47: +43 47 28.1 | J47: 6.03 | K47: 6.11 | L47: B8V | M47: B8 | N47: V | O47: 4.67570199 | P47: 43.79114037 | Q47: 4.89
A48: BD+62 49 | C48: * | F48: 4.74117785 | G48: 0 18 57.8 | H48: 63.57199195 | I48: +63 34 19.17 | J48: 9.28 | K48: 8.99 | L48: B0.5III | M48: B0 | N48: III | O48: 4.74117785 | P48: 63.57199195 | Q48: 2.01
A49: TV Cas | B49: Var | C49: Al* | F49: 4.82809299 | G49: 0 19 18.7 | H49: 59.13904457 | I49: +59 8 20.56 | J49: 7.32 | K49: 7.28 | L49: B9V | M49: B9 | N49: V | O49: 4.82809299 | P49: 59.13904457 | Q49: 3.72
A50: HD 1544 | C50: * | F50: 5.02309157 | G50: 0 20 5.5 | H50: 62.06630525 | I50: +62 3 58.69 | J50: 8.25 | K50: 8.14 | L50: B0.5IIIn... | M50: B0 | N50: IIIn... | O50: 5.02309157 | P50: 62.06630525 | Q50: 2.86
A51: BD+61 39 | C51: Be* | E51: Be | F51: 5.0726487 | G51: 0 20 17.4 | H51: 62.4638656 | I51: +62 27 49.91 | J51: 9 | K51: 8.85 | L51: B0.5IV | M51: B0 | N51: IV | O51: 5.0726487 | P51: 62.4638656 | Q51: 2.15
A52: HR 78 | C52: V* | F52: 5.10167334 | G52: 0 20 24.4 | H52: 30.93561278 | I52: +30 56 8.2 | J52: 5.77 | K52: 5.871 | L52: B7V | M52: B7 | N52: V | O52: 5.10167334 | P52: 30.93561278 | Q52: 5.129
A53: HD 236382 | C53: * | F53: 5.12532851 | G53: 0 20 30 | H53: 60.28545382 | I53: +60 17 7.63 | J53: 9.02 | K53: 8.84 | L53: B2III | M53: B2 | N53: III | O53: 5.12532851 | P53: 60.28545382 | Q53: 2.16
A54: BD+66 20A | C54: *i* | F54: 5.34237 | G54: 0 21 22.1 | H54: 67.00542 | I54: +67 0 19.51 | J54: 7.2 | K54: 7.2 | L54: B8V | M54: B8 | N54: V | O54: 5.34237 | P54: 67.00542 | Q54: 3.8
A55: BD+63 33 | B55: =IF(LEFT(A55,2)="V*","var","") ->  | C55: * | F55: 5.4595242 | G55: 0 21 50.2 | H55: 64.5950992 | I55: 64 35 42.35 | J55: 9.89 | K55: 9.48 | L55: B1V | M55: B1 | N55: V | O55: 5.4595242 | P55: 64.5950992 | Q55: 1.52
A56: V745 Cas | B56: Var | C56: WU* | F56: 5.722171 | G56: 0 22 53.3 | H56: 62.241408 | I56: +62 14 29.06 | J56: 8.17 | K56: 8.11 | L56: B0IV | M56: B0 | N56: IV | O56: 5.722171 | P56: 62.241408 | Q56: 2.89
A57: V746 Cas | B57: Var | C57: LP* | F57: 6.0652381 | G57: 0 24 15.6 | H57: 52.01991522 | I57: +52 1 11.69 | J57: 5.467 | K57: 5.575 | L57: B5IV | M57: B5 | N57: IV | O57: 6.0652381 | P57: 52.01991522 | Q57: 5.425
A58: V746 Cas | B58: Var | C58: LP* | F58: 6.0652381 | G58: 0 24 15.6 | H58: 52.01991522 | I58: +52 1 11.69 | J58: 5.467 | K58: 5.575 | L58: B5IV | M58: B5 | N58: IV | O58: 6.0652381 | P58: 52.01991522 | Q58: 5.425
A59: HD 1939 | C59: * | F59: 6.07312577 | G59: 0 24 17.5 | H59: 64.30018434 | I59: +64 18 0.66 | J59: 8.82 | K59: 8.61 | L59: B9V | M59: B9 | N59: V | O59: 6.07312577 | P59: 64.30018434 | Q59: 2.39
A60: 12 Cas | C60: * | F60: 6.19794089 | G60: 0 24 47.5 | H60: 61.8310555 | I60: +61 49 51.79 | J60: 5.386 | K60: 5.383 | L60: B9III | M60: B9 | N60: III | O60: 6.19794089 | P60: 61.8310555 | Q60: 5.617
A61: HR 96 | C61: * | F61: 6.27671218 | G61: 0 25 6.4 | H61: 53.04678683 | I61: +53 2 48.43 | J61: 5.662 | K61: 5.718 | L61: B9IV | M61: B9 | N61: IV | O61: 6.27671218 | P61: 53.04678683 | Q61: 5.282
A62: HD 2083 | B62: =IF(LEFT(A62,2)="V*","var","") ->  | C62: Em* | D62: Em | F62: 6.46348859 | G62: 0 25 51.2 | H62: 71.8071269 | I62: 71 48 25.65 | J62: 6.882 | K62: 6.906 | L62: B1V | M62: B1 | N62: V | O62: 6.46348859 | P62: 71.8071269 | Q62: 4.094
A63: BD+61 77 | B63: =IF(LEFT(A63,2)="V*","var","") ->  | C63: * | F63: 6.59671953 | G63: 0 26 23.2 | H63: 62.7607992 | I63: 62 45 38.87 | J63: 9.76 | K63: 9.61 | L63: B1IV | M63: B1 | N63: IV | O63: 6.59671953 | P63: 62.7607992 | Q63: 1.39
A64: BD+62 79 | C64: * | F64: 6.6266683 | G64: 0 26 30.4 | H64: 63.4422642 | I64: +63 26 32.15 | J64: 9.56 | K64: 9.25 | L64: O9.5IV | M64: O9 | N64: IV | O64: 6.6266683 | P64: 63.4422642 | Q64: 1.75
A65: HD 2244 | C65: * | F65: 6.66444689 | G65: 0 26 39.4 | H65: 56.64120659 | I65: +56 38 28.34 | J65: 6.59 | K65: 6.58 | L65: B9V | M65: B9 | N65: V | O65: 6.66444689 | P65: 56.64120659 | Q65: 4.42
A66: BD+63 48 | B66: =IF(LEFT(A66,2)="V*","var","") ->  | C66: Be* | E66: Be | F66: 6.6671233 | G66: 0 26 40.1 | H66: 64.4320617 | I66: 64 25 55.42 | J66: 9.97 | K66: 9.26 | L66: B1III:nne | M66: =+LEFT(L66,2) -> B1 | N66: =+IF(MID(L66,3,1)=".",MID(L66,5,10),MID(L66,3,10)) -> III:nne | O66: 6.6671233 | P66: 64.4320617 | Q66: =11-K66 -> 1.74
A67: HD 2329 | C67: * | F67: 6.91882279 | G67: 0 27 40.5 | H67: 58.55391083 | I67: +58 33 14.07 | J67: 7.499 | K67: 7.459 | L67: B3V | M67: B3 | N67: V | O67: =+F67 -> 6.91882279 | P67: =+H67 -> 58.55391083 | Q67: 3.541
A68: HD 236419 | C68: *iC | F68: 6.9768292 | G68: 0 27 54.4 | H68: 60.6252894 | I68: +60 37 31.04 | J68: 9.39 | K68: 9.18 | L68: B2III | M68: B2 | N68: III | O68: 6.9768292 | P68: 60.6252894 | Q68: 1.82
A69: HD 2451 | C69: * | F69: 7.19987767 | G69: 0 28 47.9 | H69: 62.50627186 | I69: +62 30 22.57 | J69: 8.85 | K69: 8.74 | L69: B0.5IV... | M69: B0 | N69: IV... | O69: 7.19987767 | P69: 62.50627186 | Q69: 2.26
A70: HD 2559 | C70: * | F70: 7.44944885 | G70: 0 29 47.8 | H70: 57.03070908 | I70: +57 1 50.55 | J70: 7.54 | K70: 7.54 | L70: B8V | M70: B8 | N70: V | O70: 7.44944885 | P70: 57.03070908 | Q70: 3.46
A71: HR 113 | C71: * | F71: 7.58305299 | G71: 0 30 19.9 | H71: 59.97755592 | I71: +59 58 39.2 | J71: 5.936 | K71: 5.943 | L71: B9IIIn | M71: B9 | N71: IIIn | O71: 7.58305299 | P71: 59.97755592 | Q71: 5.057
A72: HD 2619 | C72: * | F72: 7.61804666 | G72: 0 30 28.3 | H72: 65.27215635 | I72: +65 16 19.76 | J72: 8.78 | K72: 8.33 | L72: B0.5III | M72: B0 | N72: III | O72: 7.61804666 | P72: 65.27215635 | Q72: 2.67
A73: HD 2654 | C73: * | F73: 7.67341565 | G73: 0 30 41.6 | H73: 62.35400339 | I73: +62 21 14.41 | J73: 7.36 | K73: 7.392 | L73: B2V | M73: B2 | N73: V | O73: 7.67341565 | P73: 62.35400339 | Q73: 3.608
A74: 13 Cas | C74: * | F74: 7.85512196 | G74: 0 31 25.2 | H74: 66.51961657 | I74: +66 31 10.61 | J74: 6.072 | K74: 6.172 | L74: B6V | M74: B6 | N74: V | O74: 7.85512196 | P74: 66.51961657 | Q74: 4.828
A75: lam Cas | C75: * | F75: 7.94316395 | G75: 0 31 46.3 | H75: 54.52228492 | I75: +54 31 20.22 | J75: 4.645 | K75: 4.732 | L75: B8Vn | M75: B8 | N75: Vn | O75: 7.94316395 | P75: 54.52228492 | Q75: 6.268
A76: HD 2789 | C76: Be* | E76: Be | F76: 8.01184316 | G76: 0 32 2.8 | H76: 67.16113265 | I76: +67 9 40.07 | J76: 8.63 | K76: 8.36 | L76: B3Vne | M76: B3 | N76: Vne | O76: 8.01184316 | P76: 67.16113265 | Q76: 2.64
A77: HD 236455 | C77: * | F77: 8.0253508 | G77: 0 32 6 | H77: 57.1078806 | I77: +57 6 28.37 | J77: 9.44 | K77: 9.34 | L77: B9V | M77: B9 | N77: V | O77: 8.0253508 | P77: 57.1078806 | Q77: 1.66
A78: 16 Cas | C78: * | F78: 8.6038405 | G78: 0 34 24.9 | H78: 66.75034928 | I78: +66 45 1.25 | J78: 6.418 | K78: 6.468 | L78: B9III | M78: B9 | N78: III | O78: 8.6038405 | P78: 66.75034928 | Q78: 4.532
A79: HD 3191 | B79: =IF(LEFT(A79,2)="V*","var","") ->  | C79: * | F79: 8.96186012 | G79: 0 35 50.8 | H79: 61.45981085 | I79: 61 27 35.31 | J79: 8.95 | K79: 8.62 | L79: B1IV:nn | M79: B1 | N79: IV:nn | O79: 8.96186012 | P79: 61.45981085 | Q79: 2.38
A80: HR 144 | C80: * | F80: 9.03462489 | G80: 0 36 8.3 | H80: 54.16844835 | I80: +54 10 6.41 | J80: 4.979 | K80: 5.075 | L80: B7III | M80: B7 | N80: III | O80: 9.03462489 | P80: 54.16844835 | Q80: 5.925
A81: HD 3264 | C81: * | F81: 9.06440878 | G81: 0 36 15.4 | H81: 48.55576408 | I81: +48 33 20.75 | J81: 7.48 | K81: 7.52 | L81: B2V | M81: B2 | N81: V | O81: 9.06440878 | P81: 48.55576408 | Q81: 3.48
A82: PY And | B82: Var | C82: a2* | F82: 9.0837443 | G82: 0 36 20 | H82: 27.25476441 | I82: +27 15 17.15 | J82: 6.423 | K82: 6.497 | L82: B8IIImnp... | M82: B8 | N82: IIImnp... | O82: 9.0837443 | P82: 27.25476441 | Q82: 4.503
A83: AG Psc | B83: Var | C83: bC* | F83: 9.19713424 | G83: 0 36 47.3 | H83: 15.23172641 | I83: +15 13 54.21 | J83: 5.725 | K83: 5.864 | L83: B2.5IV | M83: B2 | N83: IV | O83: 9.19713424 | P83: 15.23172641 | Q83: 5.136
A84: 29 And | C84: * | F84: 9.22020523 | G84: 0 36 52.8 | H84: 33.719344 | I84: +33 43 9.63 | J84: 4.223 | K84: 4.335 | L84: B5V | M84: B5 | N84: V | O84: 9.22020523 | P84: 33.719344 | Q84: 6.665
A85: 29 And | C85: * | F85: 9.22020523 | G85: 0 36 52.8 | H85: 33.719344 | I85: +33 43 9.63 | J85: 4.223 | K85: 4.335 | L85: B5V | M85: B5 | N85: V | O85: 9.22020523 | P85: 33.719344 | Q85: 6.665
A86: zet Cas | C86: Pu* | F86: 9.24285078 | G86: 0 36 58.2 | H86: 53.89690758 | I86: +53 53 48.86 | J86: 3.483 | K86: 3.666 | L86: B2IV | M86: B2 | N86: IV | O86: 9.24285078 | P86: 53.89690758 | Q86: 7.334
A87: HD 3377 | C87: * | F87: 9.31810117 | G87: 0 37 16.3 | H87: 58.01621205 | I87: +58 0 58.36 | J87: 7.44 | K87: 7.44 | L87: B9III | M87: B9 | N87: III | O87: 9.31810117 | P87: 58.01621205 | Q87: 3.56
A88: BD+60 82 | C88: * | F88: 10.3003408 | G88: 0 41 12 | H88: 61.5995417 | I88: +61 35 58.35 | J88: 10.16 | K88: 9.98 | L88: B2III | M88: B2 | N88: III | O88: 10.3003408 | P88: 61.5995417 | Q88: 1.02
A89: ksi Cas | C89: * | F89: 10.51623091 | G89: 0 42 3.8 | H89: 50.51252542 | I89: +50 30 45.09 | J89: 4.681 | K89: 4.797 | L89: B2V | M89: B2 | N89: V | O89: 10.51623091 | P89: 50.51252542 | Q89: 6.203
A90: HD 3950 | B90: =IF(LEFT(A90,2)="V*","var","") ->  | C90: * | F90: 10.65828863 | G90: 0 42 37.9 | H90: 52.33715257 | I90: 52 20 13.74 | J90: 6.994 | K90: 6.944 | L90: B1III | M90: B1 | N90: III | O90: 10.65828863 | P90: 52.33715257 | Q90: 4.056
A91: HR 189 | C91: * | F91: 11.10913396 | G91: 0 44 26.1 | H91: 47.86398416 | I91: +47 51 50.34 | J91: 5.534 | K91: 5.646 | L91: B5V | M91: B5 | N91: V | O91: 11.10913396 | P91: 47.86398416 | Q91: 5.354
A92: HR 189 | C92: * | F92: 11.10913396 | G92: 0 44 26.1 | H92: 47.86398416 | I92: +47 51 50.34 | J92: 5.534 | K92: 5.646 | L92: B5V | M92: B5 | N92: V | O92: 11.10913396 | P92: 47.86398416 | Q92: 5.354
A93: BD+60 94 | C93: *iC | F93: 11.12781424 | G93: 0 44 30.6 | H93: 61.78053925 | I93: +61 46 49.94 | J93: 9.76 | K93: 9.64 | L93: B8V | M93: B8 | N93: V | O93: 11.12781424 | P93: 61.78053925 | Q93: 1.36
A94: BD+61 162 | C94: *iC | F94: 11.16859606 | G94: 0 44 40.4 | H94: 61.90049148 | I94: +61 54 1.76 | J94: 9.82 | K94: 9.7 | L94: B9V | M94: B9 | N94: V | O94: 11.16859606 | P94: 61.90049148 | Q94: 1.3
A95: BD+61 163 | C95: *iC | F95: 11.1700884 | G95: 0 44 40.8 | H95: 61.81203256 | I95: +61 48 43.31 | J95: 9.41 | K95: 9.28 | L95: B6.5IV-V | M95: B6 | N95: IV-V | O95: 11.1700884 | P95: 61.81203256 | Q95: 1.72
A96: omi Cas | C96: Be* | E96: Be | F96: 11.18132777 | G96: 0 44 43.5 | H96: 48.28436488 | I96: +48 17 3.71 | J96: 4.432 | K96: 4.477 | L96: B5IIIe | M96: B5 | N96: IIIe | O96: 11.18132777 | P96: 48.28436488 | Q96: 6.523
A97: omi Cas | C97: Be* | E97: Be | F97: 11.18132777 | G97: 0 44 43.5 | H97: 48.28436488 | I97: +48 17 3.71 | J97: 4.432 | K97: 4.477 | L97: B5IIIe | M97: B5 | N97: IIIe | O97: 11.18132777 | P97: 48.28436488 | Q97: 6.523
A98: BD+63 87 | C98: * | F98: 11.1976363 | G98: 0 44 47.4 | H98: 64.3371431 | I98: +64 20 13.71 | J98: 10.338 | K98: 9.978 | L98: B0.5IV | M98: B0 | N98: IV | O98: 11.1976363 | P98: 64.3371431 | Q98: 1.022
A99: BD+34 113 | C99: * | F99: 11.64352 | G99: 0 46 34.4 | H99: 34.8287925 | I99: +34 49 43.65 | J99: 11.12 | K99: 9.9 | L99: B2III:e | M99: B2 | N99: III:e | O99: 11.64352 | P99: 34.8287925 | Q99: 1.1
A100: HD 4460 | C100: * | F100: 11.82925392 | G100: 0 47 19 | H100: 47.8057472 | I100: +47 48 20.68 | J100: 8.25 | K100: 8.4 | L100: B1.5Vn... | M100: B1 | N100: Vn... | O100: 11.82925392 | P100: 47.8057472 | Q100: 2.6
A101: 23 Cas | C101: * | F101: 11.94189043 | G101: 0 47 46 | H101: 74.84757131 | I101: +74 50 51.25 | J101: 5.351 | K101: 5.417 | L101: B8III | M101: B8 | N101: III | O101: 11.94189043 | P101: 74.84757131 | Q101: 5.583
A102: 25 Cas | C102: V* | F102: 12.20842455 | G102: 0 48 50 | H102: 50.96816716 | I102: +50 58 5.4 | J102: 4.812 | K102: 4.901 | L102: B9III | M102: B9 | N102: III | O102: 12.20842455 | P102: 50.96816716 | Q102: 6.099
A103: HD 236534 | C103: * | F103: 12.2441771 | G103: 0 48 58.6 | H103: 58.2019475 | I103: +58 12 7.01 | J103: 9.55 | K103: 9.4 | L103: B9V | M103: B9 | N103: V | O103: 12.2441771 | P103: 58.2019475 | Q103: 1.6
A104: HD 236541 | C104: * | F104: 12.4471625 | G104: 0 49 47.3 | H104: 57.6096125 | I104: +57 36 34.6 | J104: 9.78 | K104: 9.67 | L104: B9V | M104: B9 | N104: V | O104: 12.4471625 | P104: 57.6096125 | Q104: 1.33
A105: 35 And | C105: SB* | F105: 12.45353069 | G105: 0 49 48.8 | H105: 41.07891011 | I105: +41 4 44.07 | J105: 4.39 | K105: 4.524 | L105: B5V+... | M105: B5 | N105: V+... | O105: 12.45353069 | P105: 41.07891011 | Q105: 6.476
A106: 35 And | C106: SB* | F106: 12.45353069 | G106: 0 49 48.8 | H106: 41.07891011 | I106: +41 4 44.07 | J106: 4.39 | K106: 4.524 | L106: B5V+... | M106: B5 | N106: V+... | O106: 12.45353069 | P106: 41.07891011 | Q106: 6.476
A107: BD+60 114 | C107: Be* | E107: Be | F107: 12.5634167 | G107: 0 50 15.2 | H107: 60.9025544 | I107: +60 54 9.19 | J107: 10.29 | K107: 9.94 | L107: B2III:pe | M107: B2 | N107: III:pe | O107: 12.5634167 | P107: 60.9025544 | Q107: 1.06
A108: HD 4854 | C108: * | F108: 12.8736017 | G108: 0 51 29.6 | H108: 61.1374536 | I108: +61 8 14.83 | J108: 9.29 | K108: 9.26 | L108: B9V | M108: B9 | N108: V | O108: 12.8736017 | P108: 61.1374536 | Q108: 1.74
A109: HD 4931 | C109: Be* | E109: Be | F109: 13.06438602 | G109: 0 52 15.4 | H109: 60.08994699 | I109: +60 5 23.8 | J109: 9.01 | K109: 8.72 | L109: B8V | M109: B8 | N109: V | O109: 13.06438602 | P109: 60.08994699 | Q109: 2.28
A110: HD 4978 | C110: * | F110: 13.1774296 | G110: 0 52 42.5 | H110: 61.7173767 | I110: +61 43 2.55 | J110: 9.41 | K110: 9.19 | L110: B9V | M110: B9 | N110: V | O110: 13.1774296 | P110: 61.7173767 | Q110: 1.81
A111: HD 5233 | C111: * | F111: 13.75427449 | G111: 0 55 1 | H111: 61.66241571 | I111: +61 39 44.69 | J111: 8.48 | K111: 8.41 | L111: B3V | M111: B3 | N111: V | O111: 13.75427449 | P111: 61.66241571 | Q111: 2.59
A112: BD+60 133 | C112: * | F112: 13.8303546 | G112: 0 55 19.2 | H112: 61.2659733 | I112: +61 15 57.5 | J112: 9.84 | K112: 9.54 | L112: B8V | M112: B8 | N112: V | O112: 13.8303546 | P112: 61.2659733 | Q112: 1.46
A113: HD 236578 | C113: * | F113: 14.1053092 | G113: 0 56 25.2 | H113: 60.0062625 | I113: +60 0 22.54 | J113: 9.86 | K113: 8.99 | L113: B8V | M113: B8 | N113: V | O113: 14.1053092 | P113: 60.0062625 | Q113: 2.01
A114: gam Cas | C114: Be* | E114: Be | F114: 14.1772154 | G114: 0 56 42.5 | H114: 60.7167403 | I114: +60 43 0.26 | J114: 2.29 | K114: 2.47 | L114: B0.5IVpe | M114: B0 | N114: IVpe | O114: 14.1772154 | P114: 60.7167403 | Q114: 8.53
A115: HD 5409 | C115: * | F115: 14.19028814 | G115: 0 56 45.6 | H115: 60.03315928 | I115: +60 1 59.37 | J115: 7.91 | K115: 7.86 | L115: B9V | M115: B9 | N115: V | O115: 14.19028814 | P115: 60.03315928 | Q115: 3.14
A116: ADS 784 A | C116: *i* | F116: 14.19558 | G116: 0 56 46.9 | H116: 60.36286 | I116: +60 21 46.29 | J116: 5.5 | K116: 5.6 | L116: B8V | M116: B8 | N116: V | O116: 14.19558 | P116: 60.36286 | Q116: 5.4
A117: HR 266 | C117: * | F117: 14.19571524 | G117: 0 56 46.9 | H117: 60.36283867 | I117: +60 21 46.21 | J117: 5.501 | K117: 5.556 | L117: B9IVn | M117: B9 | N117: IVn | O117: 14.19571524 | P117: 60.36283867 | Q117: 5.444
A118: HD 5553 | C118: * | F118: 14.53204754 | G118: 0 58 7.6 | H118: 55.82437593 | I118: +55 49 27.75 | J118: 8.13 | K118: 8.14 | L118: B1.5III-IVn... | M118: B1 | N118: III-IVn... | O118: 14.53204754 | P118: 55.82437593 | Q118: 2.86
A119: HD 5595 | C119: * | F119: 14.6774108 | G119: 0 58 42.5 | H119: 62.11011 | I119: +62 6 36.39 | J119: 9.52 | K119: 9.4 | L119: B8V | M119: B8 | N119: V | O119: 14.6774108 | P119: 62.11011 | Q119: 1.6
A120: HD 5882 | C120: * | F120: 15.23527573 | G120: 1 0 56.4 | H120: 50.87901464 | I120: +50 52 44.45 | J120: 7.61 | K120: 7.67 | L120: B2.5Vn | M120: B2 | N120: Vn | O120: 15.23527573 | P120: 50.87901464 | Q120: 3.33
A121: BD+62 183 | B121: =IF(LEFT(A121,2)="V*","var","") ->  | C121: * | F121: 15.2857104 | G121: 1 1 8.5 | H121: 63.4413406 | I121: 63 26 28.82 | J121: 9.53 | K121: 8.98 | L121: B1V:p | M121: B1 | N121: V:p | O121: 15.2857104 | P121: 63.4413406 | Q121: 2.02
A122: U Cep | B122: Var | C122: Al* | F122: 15.57685936 | G122: 1 2 18.4 | H122: 81.87557741 | I122: +81 52 32.07 | J122: 6.92 | K122: 6.92 | L122: B7V+G8III-IV | M122: B7 | N122: V+G8III-IV | O122: 15.57685936 | P122: 81.87557741 | Q122: 4.08
A123: BD+62 186 | B123: =IF(LEFT(A123,2)="V*","var","") ->  | C123: * | F123: 15.6218438 | G123: 1 2 29.2 | H123: 62.9835514 | I123: 62 59 0.78 | J123: 10.14 | K123: 9.92 | L123: B1V | M123: B1 | N123: V | O123: 15.6218438 | P123: 62.9835514 | Q123: 1.08
A124: BD+60 149 | C124: * | F124: 15.7016342 | G124: 1 2 48.3 | H124: 60.8606453 | I124: +60 51 38.32 | J124: 10.03 | K124: 9.92 | L124: B4III | M124: B4 | N124: III | O124: 15.7016342 | P124: 60.8606453 | Q124: 1.08
A125: HD 236605 | C125: * | F125: 15.7447046 | G125: 1 2 58.7 | H125: 58.2482825 | I125: +58 14 53.81 | J125: 9.33 | K125: 9.22 | L125: B9p | M125: B9 | N125: p | O125: 15.7447046 | P125: 58.2482825 | Q125: 1.78
A126: HD 236612 | C126: * | F126: 16.1498758 | G126: 1 4 35.9 | H126: 60.3363625 | I126: +60 20 10.9 | J126: 9.56 | K126: 9.34 | L126: B2IV | M126: B2 | N126: IV | O126: 16.1498758 | P126: 60.3363625 | Q126: 1.66
A127: HR 302 | C127: * | F127: 16.19499474 | G127: 1 4 46.7 | H127: 51.00978156 | I127: +51 0 35.21 | J127: 6.444 | K127: 6.525 | L127: B3V | M127: B3 | N127: V | O127: 16.19499474 | P127: 51.00978156 | Q127: 4.475
A128: HD 6343 | C128: Be* | E128: Be | F128: 16.47074639 | G128: 1 5 52.9 | H128: 65.97105327 | I128: +65 58 15.79 | J128: 7.348 | K128: 7.257 | L128: B7V | M128: B7 | N128: V | O128: 16.47074639 | P128: 65.97105327 | Q128: 3.743
A129: V760 Cas | B129: Var | C129: LP* | F129: 16.51647651 | G129: 1 6 3.9 | H129: 57.75647575 | I129: +57 45 23.31 | J129: 7.119 | K129: 7.107 | L129: B3III | M129: B3 | N129: III | O129: 16.51647651 | P129: 57.75647575 | Q129: 3.893
A130: HD 6581 | C130: * | F130: 16.97605977 | G130: 1 7 54.2 | H130: 62.33532143 | I130: +62 20 7.15 | J130: 8.66 | K130: 8.56 | L130: B8III | M130: =+LEFT(L130,2) -> B8 | N130: =+IF(MID(L130,3,1)=".",MID(L130,5,10),MID(L130,3,10)) -> III | O130: 16.97605977 | P130: 62.33532143 | Q130: =11-K130 -> 2.44
A131: HD 6633 | C131: * | F131: 17.09207 | G131: 1 8 22 | H131: 62.2420306 | I131: +62 14 31.31 | J131: 9.67 | K131: 9.31 | L131: B9III | M131: B9 | N131: III | O131: =+F131 -> 17.09207 | P131: =+H131 -> 62.2420306 | Q131: 1.69
A132: HR 326 | C132: * | F132: 17.13944452 | G132: 1 8 33.4 | H132: 58.26344805 | I132: +58 15 48.41 | J132: 5.754 | K132: 5.773 | L132: B8V | M132: B8 | N132: V | O132: 17.13944452 | P132: 58.26344805 | Q132: 5.227
A133: HD 236633 | C133: * | F133: 17.3014208 | G133: 1 9 12.3 | H133: 60.6280381 | I133: +60 37 40.93 | J133: 9.49 | K133: 9.18 | L133: B0.5III | M133: B0 | N133: III | O133: 17.3014208 | P133: 60.6280381 | Q133: 1.82
A134: HD 6675 | C134: * | F134: 17.30447838 | G134: 1 9 13 | H134: 69.68652354 | I134: +69 41 11.48 | J134: 7.155 | K134: 6.94 | L134: B0.5III | M134: B0 | N134: III | O134: 17.30447838 | P134: 69.68652354 | Q134: 4.06
A135: BD+62 212 | C135: * | F135: 17.3153062 | G135: 1 9 15.6 | H135: 63.6812531 | I135: +63 40 52.51 | J135: 10.27 | K135: 9.6 | L135: B0.5V | M135: B0 | N135: V | O135: 17.3153062 | P135: 63.6812531 | Q135: 1.4
A136: phi And | C136: * | F136: 17.3755234 | G136: 1 9 30.1 | H136: 47.24179429 | I136: +47 14 30.45 | J136: 4.197 | K136: 4.252 | L136: B7Ve | M136: B7 | N136: Ve | O136: 17.3755234 | P136: 47.24179429 | Q136: 6.748
A137: BD+60 171 | C137: * | F137: 17.3881575 | G137: 1 9 33.1 | H137: 61.3858114 | I137: +61 23 8.92 | J137: 9.59 | K137: 9.34 | L137: B3III | M137: B3 | N137: III | O137: 17.3881575 | P137: 61.3858114 | Q137: 1.66
A138: HD 6832 | C138: *i* | F138: 17.54215979 | G138: 1 10 10.1 | H138: 61.80814583 | I138: +61 48 29.32 | J138: 8.34 | K138: 8.29 | L138: B9III | M138: B9 | N138: III | O138: 17.54215979 | P138: 61.80814583 | Q138: 2.71
A139: BD+60 175 | B139: =IF(LEFT(A139,2)="V*","var","") ->  | C139: * | F139: 17.7368317 | G139: 1 10 56.8 | H139: 61.09213 | I139: 61 5 31.66 | J139: 9.68 | K139: 9.45 | L139: B1V | M139: B1 | N139: V | O139: 17.7368317 | P139: 61.09213 | Q139: 1.55
A140: BD+59 198 | C140: * | F140: 17.7682046 | G140: 1 11 4.3 | H140: 60.0225783 | I140: +60 1 21.28 | J140: 10.02 | K140: 9.85 | L140: B8III | M140: B8 | N140: III | O140: 17.7682046 | P140: 60.0225783 | Q140: 1.15
A141: 45 And | C141: * | F141: 17.79282516 | G141: 1 11 10.2 | H141: 37.7241257 | I141: +37 43 26.85 | J141: 5.69 | K141: 5.784 | L141: B7III-IV | M141: B7 | N141: III-IV | O141: 17.79282516 | P141: 37.7241257 | Q141: 5.216
A142: RU Cas | B142: Var | C142: V* | F142: 17.92250623 | G142: 1 11 41.4 | H142: 65.01885205 | I142: +65 1 7.86 | J142: 5.492 | K142: 5.564 | L142: B9IV | M142: B9 | N142: IV | O142: 17.92250623 | P142: 65.01885205 | Q142: 5.436
A143: HD 7104 | C143: * | F143: 18.1493142 | G143: 1 12 35.8 | H143: 61.7751986 | I143: +61 46 30.71 | J143: 8.93 | K143: 8.84 | L143: B8V | M143: B8 | N143: V | O143: 18.1493142 | P143: 61.7751986 | Q143: 2.16
A144: V761 Cas | B144: Var | C144: a2* | F144: 18.29105985 | G144: 1 13 9.8 | H144: 61.70618525 | I144: +61 42 22.26 | J144: 6.429 | K144: 6.446 | L144: B9V | M144: B9 | N144: V | O144: 18.29105985 | P144: 61.70618525 | Q144: 4.554
A145: BD+59 206 | C145: * | F145: 18.3960971 | G145: 1 13 35 | H145: 60.6455708 | I145: +60 38 44.05 | J145: 9.76 | K145: 9.6 | L145: B9V | M145: B9 | N145: V | O145: 18.3960971 | P145: 60.6455708 | Q145: 1.4
A146: HD 236667 | C146: * | F146: 18.46957311 | G146: 1 13 52.6 | H146: 59.05509842 | I146: +59 3 18.35 | J146: 9.37 | K146: 9.25 | L146: B8V | M146: B8 | N146: V | O146: 18.46957311 | P146: 59.05509842 | Q146: 1.75
A147: HD 7252 | B147: =IF(LEFT(A147,2)="V*","var","") ->  | C147: * | F147: 18.51521236 | G147: 1 14 3.6 | H147: 60.88311792 | I147: 60 52 59.22 | J147: 7.214 | K147: 7.185 | L147: B1V... | M147: B1 | N147: V... | O147: 18.51521236 | P147: 60.88311792 | Q147: 3.815
A148: 87 Psc | C148: * | F148: 18.53179071 | G148: 1 14 7.6 | H148: 16.13347773 | I148: +16 8 0.51 | J148: 5.874 | K148: 5.957 | L148: B8III | M148: B8 | N148: III | O148: 18.53179071 | P148: 16.13347773 | Q148: 5.043
A149: BD+60 191 | C149: * | F149: 18.625867 | G149: 1 14 30.2 | H149: 61.332275 | I149: +61 19 56.19 | J149: 10.55 | K149: 9.94 | L149: B2IV | M149: B2 | N149: IV | O149: 18.625867 | P149: 61.332275 | Q149: 1.06
A150: QV And | B150: Var | C150: a2* | F150: 19.10205078 | G150: 1 16 24.4 | H150: 48.08224517 | I150: +48 4 56.08 | J150: 6.567 | K150: 6.613 | L150: B9IIIsp... | M150: B9 | N150: IIIsp... | O150: 19.10205078 | P150: 48.08224517 | Q150: 4.387
A151: HD 7636 | C151: Be* | E151: Be | F151: 19.3595516 | G151: 1 17 26.2 | H151: 57.63208145 | I151: +57 37 55.49 | J151: 6.93 | K151: 6.891 | L151: B2IIIne | M151: B2 | N151: IIIne | O151: 19.3595516 | P151: 57.63208145 | Q151: 4.109
A152: HD 7694 | B152: =IF(LEFT(A152,2)="V*","var","") ->  | C152: * | F152: 19.45989511 | G152: 1 17 50.3 | H152: 55.44539126 | I152: 55 26 43.4 | J152: 7.25 | K152: 7.38 | L152: B1V | M152: B1 | N152: V | O152: 19.45989511 | P152: 55.44539126 | Q152: 3.62
A153: HD 236689 | C153: Be* | E153: Be | F153: 19.6378129 | G153: 1 18 33 | H153: 58.3751389 | I153: +58 22 30.5 | J153: 9.72 | K153: 9.47 | L153: B1.5V:pe | M153: B1 | N153: V:pe | O153: 19.6378129 | P153: 58.3751389 | Q153: 1.53
A154: BD+60 203 | C154: * | F154: 19.7243938 | G154: 1 18 53.8 | H154: 61.5715536 | I154: +61 34 17.59 | J154: 9.64 | K154: 9.51 | L154: B9V | M154: B9 | N154: V | O154: 19.7243938 | P154: 61.5715536 | Q154: 1.49
A155: Cl* NGC 457 HOAG 4 | C155: *iC | F155: 19.78575 | G155: 1 19 8.5 | H155: 58.23761 | I155: +58 14 15.39 | J155: 9.99 | K155: 9.6 | L155: B6V:e | M155: B6 | N155: V:e | O155: 19.78575 | P155: 58.23761 | Q155: 1.4
A156: BD+57 247 | C156: *iC | F156: 19.7927929 | G156: 1 19 10.2 | H156: 58.3491836 | I156: +58 20 57.06 | J156: 10.06 | K156: 9.93 | L156: O9.5IV | M156: O9 | N156: IV | O156: 19.7927929 | P156: 58.3491836 | Q156: 1.07
A157: BD+57 249 | B157: =IF(LEFT(A157,2)="V*","var","") ->  | C157: *i* | F157: 19.8458854 | G157: 1 19 23 | H157: 58.3056444 | I157: 58 18 20.31 | J157: 10.25 | K157: 9.96 | L157: B1V(~) | M157: B1 | N157: V(~) | O157: 19.8458854 | P157: 58.3056444 | Q157: 1.04
A158: BD+57 252 | B158: =IF(LEFT(A158,2)="V*","var","") ->  | C158: *iC | F158: 19.892412 | G158: 1 19 34.1 | H158: 58.256136 | I158: 58 15 22.08 | J158: 9.76 | K158: 9.5 | L158: B1IV | M158: B1 | N158: IV | O158: 19.892412 | P158: 58.256136 | Q158: 1.5
A159: BD+64 156 | C159: * | F159: 20.9460717 | G159: 1 23 47 | H159: 65.6289644 | I159: +65 37 44.27 | J159: 10.03 | K159: 9.53 | L159: B0.5III | M159: B0 | N159: III | O159: 20.9460717 | P159: 65.6289644 | Q159: 1.47
A160: BD+60 232 | C160: Em* | D160: Em | F160: 21.2748817 | G160: 1 25 5.9 | H160: 60.8015183 | I160: +60 48 5.46 | J160: 10.2 | K160: 9.98 | L160: B2III | M160: B2 | N160: III | O160: 21.2748817 | P160: 60.8015183 | Q160: 1.02
A161: HR 419 | C161: *i* | F161: 21.72313235 | G161: 1 26 53.5 | H161: 3.53564669 | I161: +3 32 8.32 | J161: 6.581 | K161: 6.644 | L161: B9V+... | M161: B9 | N161: V+... | O161: 21.72313235 | P161: 3.53564669 | Q161: 4.356
A162: HD 8736 | C162: * | F162: 21.93599847 | G162: 1 27 44.6 | H162: 62.77342099 | I162: +62 46 24.31 | J162: 9.09 | K162: 8.89 | L162: B9V | M162: B9 | N162: V | O162: 21.93599847 | P162: 62.77342099 | Q162: 2.11
A163: BD+58 241 | B163: =IF(LEFT(A163,2)="V*","var","") ->  | C163: * | F163: 21.97865536 | G163: 1 27 54.8 | H163: 59.23580875 | I163: 59 14 8.91 | J163: 10.14 | K163: 9.91 | L163: B1V | M163: B1 | N163: V | O163: 21.97865536 | P163: 59.23580875 | Q163: 1.09
A164: HD 236745 | C164: * | F164: 21.9909317 | G164: 1 27 57.8 | H164: 58.3560067 | I164: +58 21 21.62 | J164: 9.76 | K164: 9.55 | L164: B5V | M164: B5 | N164: V | O164: 21.9909317 | P164: 58.3560067 | Q164: 1.45
A165: HD 236745 | C165: * | F165: 21.9909317 | G165: 1 27 57.8 | H165: 58.3560067 | I165: +58 21 21.62 | J165: 9.76 | K165: 9.55 | L165: B5V | M165: B5 | N165: V | O165: 21.9909317 | P165: 58.3560067 | Q165: 1.45
A166: HD 8769 | C166: * | F166: 22.00502061 | G166: 1 28 1.2 | H166: 61.32499311 | I166: +61 19 29.97 | J166: 9.38 | K166: 9.3 | L166: B9V | M166: B9 | N166: V | O166: 22.00502061 | P166: 61.32499311 | Q166: 1.7
A167: HD 8768 | C167: * | F167: 22.01313203 | G167: 1 28 3.1 | H167: 63.28254851 | I167: +63 16 57.17 | J167: 9.05 | K167: 8.74 | L167: O9.5IV | M167: O9 | N167: IV | O167: 22.01313203 | P167: 63.28254851 | Q167: 2.26
A168: XX Cas | B168: Var | C168: Al* | F168: 22.3942129 | G168: 1 29 34.6 | H168: 60.9679628 | I168: +60 58 4.66 | J168: 9.73 | K168: 9.57 | L168: B4Vn | M168: B4 | N168: Vn | O168: 22.3942129 | P168: 60.9679628 | Q168: 1.43
A169: HD 8965 | C169: * | F169: 22.464016 | G169: 1 29 51.3 | H169: 60.2512663 | I169: +60 15 4.55 | J169: 7.285 | K169: 7.297 | L169: B0.5V | M169: B0 | N169: V | O169: 22.464016 | P169: 60.2512663 | Q169: 3.703
A170: CCDM J01301+6335AB | B170: =IF(LEFT(A170,2)="V*","var","") ->  | C170: ** | F170: 22.524812 | G170: 1 30 5.9 | H170: 63.582308 | I170: 63 34 56.3 | J170: 10.54 | K170: 9.87 | L170: B1IV | M170: B1 | N170: IV | O170: 22.524812 | P170: 63.582308 | Q170: 1.13
A171: HD 236758 | C171: * | F171: 22.5288304 | G171: 1 30 6.9 | H171: 57.9842811 | I171: +57 59 3.41 | J171: 9.41 | K171: 9.32 | L171: B9V | M171: B9 | N171: V | O171: 22.5288304 | P171: 57.9842811 | Q171: 1.68
A172: V646 Cas | B172: Var | C172: Al* | F172: 22.6460779 | G172: 1 30 35 | H172: 62.7252292 | I172: +62 43 30.82 | J172: 10.14 | K172: 9.73 | L172: B0IV:nn | M172: B0 | N172: IV:nn | O172: 22.6460779 | P172: 62.7252292 | Q172: 1.27
A173: HD 236761 | C173: * | F173: 22.6740517 | G173: 1 30 41.7 | H173: 58.2341225 | I173: +58 14 2.84 | J173: 9.78 | K173: 9.62 | L173: B8V | M173: B8 | N173: V | O173: 22.6740517 | P173: 58.2341225 | Q173: 1.38
A174: HD 236762 | C174: * | F174: 22.76064071 | G174: 1 31 2.5 | H174: 59.73720127 | I174: +59 44 13.92 | J174: 9.73 | K174: 9.59 | L174: B1.5III | M174: B1 | N174: III | O174: 22.76064071 | P174: 59.73720127 | Q174: 1.41
A175: HD 9145 | C175: *i* | F175: 22.9215104 | G175: 1 31 41.1 | H175: 61.0428922 | I175: +61 2 34.41 | J175: 8.23 | K175: 8.08 | L175: B7III | M175: B7 | N175: III | O175: 22.9215104 | P175: 61.0428922 | Q175: 2.92
A176: HR 438 | C176: * | F176: 23.03157216 | G176: 1 32 7.5 | H176: 34.79996242 | I176: +34 47 59.86 | J176: 6.274 | K176: 6.375 | L176: B7IIImnp... | M176: B7 | N176: IIImnp... | O176: 23.03157216 | P176: 34.79996242 | Q176: 4.625
A177: V1116 Cas | B177: Var | C177: bC* | F177: 23.1540233 | G177: 1 32 36.9 | H177: 61.9699028 | I177: +61 58 11.65 | J177: 9.77 | K177: 9.5 | L177: B0.5III | M177: B0 | N177: III | O177: 23.1540233 | P177: 61.9699028 | Q177: 1.5
A178: HD 9256 | C178: * | F178: 23.18050193 | G178: 1 32 43.3 | H178: 61.86133842 | I178: +61 51 40.81 | J178: 8.95 | K178: 8.84 | L178: B7V | M178: B7 | N178: V | O178: 23.18050193 | P178: 61.86133842 | Q178: 2.16
A179: V1122 Cas | B179: Var | C179: Be* | E179: Be | F179: 23.31258 | G179: 1 33 15 | H179: 60.6835 | I179: +60 41 0.6 | J179: 9.9 | K179: 9.62 | L179: B5V | M179: B5 | N179: V | O179: 23.31258 | P179: 60.6835 | Q179: 1.38
A180: V1122 Cas | B180: Var | C180: Be* | E180: Be | F180: 23.31258 | G180: 1 33 15 | H180: 60.6835 | I180: +60 41 0.6 | J180: 9.9 | K180: 9.62 | L180: B5V | M180: B5 | N180: V | O180: 23.31258 | P180: 60.6835 | Q180: 1.38
A181: HD 236785 | C181: * | F181: 23.4586729 | G181: 1 33 50 | H181: 58.5338875 | I181: +58 32 1.99 | J181: 9.91 | K181: 9.8 | L181: B8V | M181: B8 | N181: V | O181: 23.4586729 | P181: 58.5338875 | Q181: 1.2
A182: HD 9480 | C182: ** | F182: 23.50273891 | G182: 1 34 0.6 | H182: 45.97657317 | I182: +45 58 35.66 | J182: 8.7 | K182: 8.7 | L182: B9V | M182: B9 | N182: V | O182: 23.50273891 | P182: 45.97657317 | Q182: 2.3
A183: KK And | B183: Var | C183: a2* | F183: 23.56919659 | G183: 1 34 16.6 | H183: 37.23714421 | I183: +37 14 13.71 | J183: 5.81 | K183: 5.91 | L183: B9IV | M183: B9 | N183: IV | O183: 23.56919659 | P183: 37.23714421 | Q183: 5.09
A184: HD 236788 | C184: * | F184: 23.6457483 | G184: 1 34 34.9 | H184: 58.1848769 | I184: +58 11 5.55 | J184: 9.21 | K184: 9 | L184: B9V | M184: B9 | N184: V | O184: 23.6457483 | P184: 58.1848769 | Q184: 2
A185: BD+62 271 | C185: Be* | E185: Be | F185: 23.7044792 | G185: 1 34 49 | H185: 63.6266197 | I185: +63 37 35.83 | J185: 9.16 | K185: 8.58 | L185: B8V | M185: B8 | N185: V | O185: 23.7044792 | P185: 63.6266197 | Q185: 2.42
A186: HD 9709 | C186: Be* | E186: Be | F186: 24.01285426 | G186: 1 36 3 | H186: 47.11447114 | I186: +47 6 52.09 | J186: 7.02 | K186: 7.07 | L186: B8V | M186: B8 | N186: V | O186: 24.01285426 | P186: 47.11447114 | Q186: 3.93
A187: HD 9682 | C187: * | F187: 24.1063771 | G187: 1 36 25.5 | H187: 60.7655194 | I187: +60 45 55.86 | J187: 9.21 | K187: 9.12 | L187: B9V | M187: B9 | N187: V | O187: 24.1063771 | P187: 60.7655194 | Q187: 1.88
A188: HD 9696 | C188: * | F188: 24.15809082 | G188: 1 36 37.9 | H188: 61.27672672 | I188: +61 16 36.21 | J188: 9 | K188: 8.77 | L188: B8V | M188: B8 | N188: V | O188: 24.15809082 | P188: 61.27672672 | Q188: 2.23
A189: HD 9824 | C189: * | F189: 24.195883 | G189: 1 36 47 | H189: 43.769442 | I189: +43 46 9.99 | J189: 9.37 | K189: 9.34 | L189: B9V | M189: B9 | N189: V | O189: 24.195883 | P189: 43.769442 | Q189: 1.66
A190: V769 Cas | B190: Var | C190: LP* | F190: 24.19600641 | G190: 1 36 47 | H190: 63.4144762 | I190: +63 24 52.11 | J190: 7.71 | K190: 7.62 | L190: B8III | M190: B8 | N190: III | O190: 24.19600641 | P190: 63.4144762 | Q190: 3.38
A191: TYC 4035-1518-1 | B191: =IF(LEFT(A191,2)="V*","var","") ->  | C191: * | F191: 24.2103429 | G191: 1 36 50.4 | H191: 62.3014961 | I191: 62 18 5.38 | J191: 10.24 | K191: 9.87 | L191: B1V | M191: B1 | N191: V | O191: 24.2103429 | P191: 62.3014961 | Q191: 1.13
A192: HD 236800 | B192: =IF(LEFT(A192,2)="V*","var","") ->  | C192: * | F192: 24.2118754 | G192: 1 36 50.8 | H192: 59.9428831 | I192: 59 56 34.37 | J192: 9.83 | K192: 9.62 | L192: B1III:n | M192: B1 | N192: III:n | O192: 24.2118754 | P192: 59.9428831 | Q192: 1.38
A193: BD+62 278 | C193: * | F193: 24.2544008 | G193: 1 37 1 | H193: 63.7275322 | I193: +63 43 39.11 | J193: 10.45 | K193: 9.93 | L193: B0.5III | M193: B0 | N193: III | O193: 24.2544008 | P193: 63.7275322 | Q193: 1.07
A194: HR 449 | C194: Be* | E194: Be | F194: 24.34259403 | G194: 1 37 22.2 | H194: 74.30095575 | I194: +74 18 3.44 | J194: 6.596 | K194: 6.589 | L194: B9Ve | M194: =+LEFT(L194,2) -> B9 | N194: =+IF(MID(L194,3,1)=".",MID(L194,5,10),MID(L194,3,10)) -> Ve | O194: 24.34259403 | P194: 74.30095575 | Q194: =11-K194 -> 4.411
A195: HD 9937 | C195: *i* | F195: 24.4819371 | G195: 1 37 55.6 | H195: 43.6703803 | I195: +43 40 13.36 | J195: 8.81 | K195: 8.82 | L195: B8V | M195: B8 | N195: V | O195: =+F195 -> 24.4819371 | P195: =+H195 -> 43.6703803 | Q195: 2.18
A196: HD 9878 | C196: * | F196: 24.55264977 | G196: 1 38 12.6 | H196: 62.35178395 | I196: +62 21 6.42 | J196: 6.698 | K196: 6.714 | L196: B7V | M196: B7 | N196: V | O196: 24.55264977 | P196: 62.35178395 | Q196: 4.286
A197: HD 236810 | C197: * | F197: 24.60951379 | G197: 1 38 26.2 | H197: 60.56296642 | I197: +60 33 46.67 | J197: 8.9 | K197: 8.73 | L197: B2III | M197: B2 | N197: III | O197: 24.60951379 | P197: 60.56296642 | Q197: 2.27
A198: GY And | B198: Var | C198: a2* | F198: 24.63260262 | G198: 1 38 31.8 | H198: 45.39970344 | I198: +45 23 58.93 | J198: 6.348 | K198: 6.388 | L198: B9pe... | M198: B9 | N198: pe... | O198: 24.63260262 | P198: 45.39970344 | Q198: 4.612
A199: BD+62 285 | C199: Be* | E199: Be | F199: 24.7736571 | G199: 1 39 5.6 | H199: 63.4628714 | I199: +63 27 46.33 | J199: 9.36 | K199: 8.85 | L199: B8V | M199: B8 | N199: V | O199: 24.7736571 | P199: 63.4628714 | Q199: 2.15
A200: HD 236815 | C200: * | F200: 24.83849786 | G200: 1 39 21.2 | H200: 60.40843228 | I200: +60 24 30.35 | J200: 8.71 | K200: 8.56 | L200: B0.5III | M200: B0 | N200: III | O200: 24.83849786 | P200: 60.40843228 | Q200: 2.44
... 2491 more rows

Sheet Extraction
A1: HR 6968 | C1: *i* | F1: 278.2081569 | G1: 18 32 49.9 | H1: 30.55420854 | I1: +30 33 15.15 | J1: 5.389 | K1: 5.465 | L1: B8IV | M1: B8 | N1: IV | O1: -0.076 | P1: 4.535
A2: HR 6971 | C2: Be* | E2: Be | F2: 278.345994 | G2: 18 33 23 | H2: 30.89209017 | I2: +30 53 31.52 | J2: 6.437 | K2: 6.538 | L2: B4Ve | M2: B4 | N2: Ve | O2: -0.101 | P2: 3.462
A3: HR 6984 | C3: * | F3: 278.8062716 | G3: 18 35 13.5 | H3: 34.45802211 | I3: +34 27 28.87 | J3: 5.984 | K3: 6.088 | L3: B5Vne | M3: B5 | N3: Vne | O3: -0.104 | P3: 3.912
A4: HR 6984 | C4: * | F4: 278.8062716 | G4: 18 35 13.5 | H4: 34.45802211 | I4: +34 27 28.87 | J4: 5.984 | K4: 6.088 | L4: B5Vne | M4: B5 | N4: Vne | O4: -0.104 | P4: 3.912
A5: HR 6997 | C5: * | F5: 279.1555992 | G5: 18 36 37.3 | H5: 33.46903969 | I5: +33 28 8.54 | J5: 5.312 | K5: 5.41 | L5: B8II-IIIp... | M5: B8 | N5: II-IIIp... | O5: -0.098 | P5: 4.59
A6: HR 7030 | C6: * | F6: 280.4221301 | G6: 18 41 41.3 | H6: 31.6176115 | I6: +31 37 3.4 | J6: 6.356 | K6: 6.403 | L6: B8V | M6: B8 | N6: V | O6: -0.047 | P6: 3.597
A7: HR 7033 | C7: * | F7: 280.5336966 | G7: 18 42 8 | H7: 34.74630527 | I7: +34 44 46.69 | J7: 6.34 | K7: 6.47 | L7: B5V | M7: B5 | N7: V | O7: -0.13 | P7: 3.53
A8: HR 7033 | C8: * | F8: 280.5336966 | G8: 18 42 8 | H8: 34.74630527 | I8: +34 44 46.69 | J8: 6.34 | K8: 6.47 | L8: B5V | M8: B5 | N8: V | O8: -0.13 | P8: 3.53
A9: HR 7081 | C9: Be* | E9: Be | F9: 281.9890569 | G9: 18 47 57.3 | H9: 31.75683482 | I9: +31 45 24.6 | J9: 5.912 | K9: 6.047 | L9: B3IVp | M9: B3 | N9: IVp | O9: -0.135 | P9: 3.953
A10: 8 Lyr | C10: V* | F10: 282.4413096 | G10: 18 49 45.9 | H10: 32.81282378 | I10: +32 48 46.16 | J10: 5.763 | K10: 5.914 | L10: B3IV | M10: B3 | N10: IV | O10: -0.151 | P10: 4.086
A11: bet Lyr | B11: Var | C11: bL* | F11: 282.5199802 | G11: 18 50 4.7 | H11: 33.36266944 | I11: +33 21 45.6 | J11: 3.52 | K11: 3.52 | L11: B8II-IIIep | M11: B8 | N11: II-IIIep | O11: 0 | P11: 6.48
A12: HD 174664 | C12: SB* | F12: 282.5279387 | G12: 18 50 6.7 | H12: 33.351855 | I12: +33 21 6.67 | J12: 7.05 | K12: 7.13 | L12: B5V | M12: B5 | N12: V | O12: -0.08 | P12: 2.87
A13: HD 174664 | C13: SB* | F13: 282.5279387 | G13: 18 50 6.7 | H13: 33.351855 | I13: +33 21 6.67 | J13: 7.05 | K13: 7.13 | L13: B5V | M13: B5 | N13: V | O13: -0.08 | P13: 2.87
A14: HR 7115 | C14: * | F14: 282.902153 | G14: 18 51 36.5 | H14: 36.53908892 | I14: +36 32 20.72 | J14: 5.993 | K14: 6.09 | L14: B6IV | M14: B6 | N14: IV | O14: -0.097 | P14: 3.91
A15: HD 175081 | C15: *i* | F15: 283.0062604 | G15: 18 52 1.5 | H15: 37.51652521 | I15: +37 30 59.49 | J15: 7.27 | K15: 7.34 | L15: B5n | M15: B5 | N15: n | O15: -0.07 | P15: 2.66
A16: HD 175081 | C16: *i* | F16: 283.0062604 | G16: 18 52 1.5 | H16: 37.51652521 | I16: +37 30 59.49 | J16: 7.27 | K16: 7.34 | L16: B5n | M16: B5 | N16: n | O16: -0.07 | P16: 2.66
A17: 11 Lyr | C17: * | F17: 283.4314963 | G17: 18 53 43.5 | H17: 36.97172 | I17: +36 58 18.19 | J17: 5.433 | K17: 5.569 | L17: B2.5V | M17: B2 | N17: V | O17: -0.136 | P17: 4.431
A18: HD 175885 | C18: *i* | F18: 284.0070141 | G18: 18 56 1.6 | H18: 33.78558945 | I18: +33 47 8.12 | J18: 8.11 | K18: 8.13 | L18: B9V | M18: B9 | N18: V | O18: -0.02 | P18: 1.87
A19: V542 Lyr | B19: Var | C19: Al* | F19: 284.5079083 | G19: 18 58 1.8 | H19: 38.26618917 | I19: +38 15 58.28 | J19: 5.798 | K19: 5.886 | L19: B7IV | M19: B7 | N19: IV | O19: -0.088 | P19: 4.114
A20: SULAFAT | C20: *i* | F20: 284.7359267 | G20: 18 58 56.6 | H20: 32.68955564 | I20: +32 41 22.4 | J20: 3.2 | K20: 3.25 | L20: B9III | M20: B9 | N20: III | O20: -0.05 | P20: 6.75
A21: V545 Lyr | B21: Var | C21: LP* | F21: 284.8012158 | G21: 18 59 12.2 | H21: 39.21732252 | I21: +39 13 2.36 | J21: 6.249 | K21: 6.404 | L21: B5IV | M21: B5 | N21: IV | O21: -0.155 | P21: 3.596
A22: V545 Lyr | B22: Var | C22: LP* | F22: 284.8012158 | G22: 18 59 12.2 | H22: 39.21732252 | I22: +39 13 2.36 | J22: 6.249 | K22: 6.404 | L22: B5IV | M22: B5 | N22: IV | O22: -0.155 | P22: 3.596

Sheet Data
A2: Nb Stars | C2: =+COUNTA(Base!A:A)-1 -> 2690
A4: Champ | B4: 1 | C4: 5
B5: 2 | C5: 10
A7: Taille | B7: 10

Sheet Simbad
B2: *
B3: ** | C3: double
B4: *i* | C4: star in double
B5: *iA | C5: Association
B6: *iC | C6: Cluster
B7: *iN | C7: Nébuleuse
B8: ?
B9: a2* | C9: alp2 Cvn
B10: Al* | C10: EB Algol
B11: bC* | C11: Bet Cep
B12: Be* | C12: Be
B13: bL* | C13: Bet Lyr
B14: C* | C14: Carbon
B15: Ce* | C15: Cepheid
B16: Cl* | C16: Cluster
B17: dS* | C17: Del Sct
B18: EB*
B19: El* | C19: Ellipsoidal
B20: Em* | C20: Em
B21: HB* | C21: Horizontal Branch
B22: HXB | C22: HXB
B23: IR | C23: IR
B24: Ir* | C24: Var Ir
B25: LP* | C25: Long Period
B26: LXB
B27: No* | C27: Nova
B28: OpC | C28: Open Cluster
B29: Or* | C29: Orion type var
B30: pA* | C30: post AGB
B31: Pe* | C31: Peculiar
B32: PM* | C32: High proper-motion Star
B33: pr* | C33: pre main sequence
B34: Pu* | C34: Pulsating var
B35: RI* | C35: Rapid var
B36: RNe | C36: Reflexion nebula
B37: Ro* | C37: Rotationally variable Star
B38: RR* | C38: RR Lyr
B39: RV* | C39: RV Tau
B40: s*b | C40: blue super giant
B41: SB* | C41: spectroscopic binary
B42: SN* | C42: SN
B43: sr* | C43: Semi-regular pulsating Star
B44: TT* | C44: T Tau
B45: TT? | C45: T Tau
B46: UV | C46: UV
B47: V* | C47: Var
B48: WD* | C48: White dwarf
B49: WR* | C49: Wolf Rayet
B50: WU* | C50: W Uma
B51: Y*? | C51: young stellar object possible
B52: Y*O | C52: Young stellar object
B53: ZZ* | C53: Pulsating White Dwarf
